fUSD/lending_fUSD_20240927
["ID","MTS","AMOUNT","RATE_DAILY","PERIOD"]
[339355657,1727464232025,-995.1,0.000118,2]
[339355658,1727464232035,-171.98,0.0001186,2]
[339355659,1727464232045,-312.93,0.0001186,2]
[339355660,1727464232054,-356.77,0.00011887,2]
[339355661,1727464232064,-1000.0,0.00011906,2]
[339355662,1727464232073,-242.41,0.00011906,2]
[339355663,1727464232082,-150.0,0.00011979,2]
[339355664,1727464232091,-172.025,0.00011999,2]
[339355665,1727464232100,-700.0,0.00012,2]
[339355666,1727464232110,-275.04,0.00012133,2]
[339355667,1727464232119,-169.37,0.00012445,2]
[339355668,1727464232129,-290.829,0.00012796,2]
[339355669,1727464232138,-200.0,0.00012797,2]
[339355670,1727464232148,-1000.0,0.00012799,2]
[339355671,1727464232157,-150.0,0.00012799,2]
[339355672,1727464232166,-10145.1364,0.000128,2]
[339355673,1727464232177,-2946.7393,0.000128,2]
[339355675,1727464232186,-500.0,0.000128,2]
[339355677,1727464232195,-231.96514932,0.000128,2]
[339355679,1727464232204,-231.96514932,0.000128,2]
[339355681,1727464232214,-231.96514932,0.000128,2]
[339355683,1727464232223,-231.96514932,0.000128,2]
[339355685,1727464232232,-231.96514932,0.000128,2]
[339355687,1727464232242,-231.96514932,0.000128,2]
[339355689,1727464232250,-231.96514932,0.000128,2]
[339355691,1727464232260,-231.96514932,0.000128,2]
[339355693,1727464232269,-231.96514932,0.000128,2]
[339355694,1727464232278,-231.96514932,0.000128,2]
[339355696,1727464232288,-231.96514932,0.000128,2]
[339355698,1727464232297,-231.96514932,0.000128,2]
[339355700,1727464232306,-231.96514932,0.000128,2]
[339355702,1727464232320,-231.96514932,0.000128,2]
[339355704,1727464232329,-231.96514932,0.000128,2]
[339355706,1727464232338,-231.96514932,0.000128,2]
[339355708,1727464232348,-231.96514932,0.000128,2]
[339355710,1727464232358,-231.96514932,0.000128,2]
[339355712,1727464232367,-231.96514932,0.000128,2]
[339355714,1727464232376,-232.46,0.000128,2]
[339355716,1727464232385,-165.25529033,0.000128,2]
[339355718,1727464232396,-165.25529033,0.000128,2]
[339355719,1727464232406,-165.25529033,0.000128,2]
[339355721,1727464232415,-165.25529033,0.000128,2]
[339355724,1727464232426,-165.25529033,0.000128,2]
[339355726,1727464232436,-165.25529033,0.000128,2]
[339355727,1727464232445,-165.25529033,0.000128,2]
[339355729,1727464232454,-165.25529033,0.000128,2]
[339355731,1727464232464,-165.75,0.000128,2]
[339355732,1727464232473,-160.60184573,0.000128,2]
[339355733,1727464232483,-160.60184573,0.000128,2]
[339355734,1727464232492,-160.60184573,0.000128,2]
[339355735,1727464232501,-160.60184573,0.000128,2]
[339355736,1727464232511,-160.60184573,0.000128,2]
[339355737,1727464232520,-160.60184573,0.000128,2]
[339355738,1727464232531,-160.60184573,0.000128,2]
[339355739,1727464232541,-160.60184573,0.000128,2]
[339355740,1727464232551,-160.60184573,0.000128,2]
[339355741,1727464232561,-160.60184573,0.000128,2]
[339355742,1727464232570,-160.60184573,0.000128,2]
[339355743,1727464232579,-161.1,0.000128,2]
[339355744,1727464232588,-9148.73840974,0.000128,2]
[339355745,1727464232597,-158.791904,0.0001284,2]
[339355746,1727464232606,-500.0,0.00012873,2]
[339355747,1727464232615,-151.95,0.0001289,2]
[339355749,1727464232624,-253.56582681,0.00012899,2]
[339355751,1727464232634,-500.0,0.00012899,2]
[339355753,1727464232643,-374.43911995,0.00012899,2]
[339355755,1727464232653,-345257.50932065,0.00012899,2]
[339355757,1727464232662,-103122.78718181,0.000129,2]
[339355759,1727464232675,-9511.97964083,0.000129,2]
[339355898,1727464237885,-257.54861133,0.000129,2]
[339355899,1727464237897,-660.49,0.000129,2]
[339355900,1727464237908,-280.695,0.000129,2]
[339355901,1727464238042,-1121.48036,0.000129,2]
[339355907,1727464239814,-5169.12813013,0.000129,2]
[339355908,1727464239826,-539.51918728,0.000129,2]
[339355909,1727464239836,-904.85065899,0.000129,2]
[339355910,1727464239875,-131636.8927666,0.000129,2]
[339355911,1727464239886,-5615.0,0.000129,2]
[339355912,1727464239897,-2951.7197915,0.000129,2]
[339355913,1727464239908,-1300.0,0.000129,2]
[339355914,1727464239936,-352768.40545461,0.000129,2]
[339355915,1727464239947,-186696.30956167,0.000129,2]
[339355916,1727464239959,-453.8784,0.000129,2]
[339355917,1727464239999,-659.88940556,0.000129,2]
[339355918,1727464240010,-317.96,0.000129,2]
[339355919,1727464240021,-4287.70000001,0.000129,2]
[339355920,1727464240032,-1593.55023297,0.000129,2]
[339355921,1727464240043,-744.96847343,0.000129,2]
[339355922,1727464240061,-1200.9008108,0.000129,2]
[339355929,1727464242935,-405.466,0.000129,2]
[339355930,1727464242947,-3695.10176852,0.000129,2]
[339355931,1727464242958,-1313.45571134,0.000129,2]
[339355932,1727464242969,-7898.999995,0.000129,2]
[339355933,1727464242980,-96462.0,0.000129,2]
[339355934,1727464242992,-600.64996105,0.000129,2]
[339355935,1727464243003,-7979.52814858,0.000129,2]
[339355936,1727464243015,-2156.18686136,0.000129,2]
[339355937,1727464243026,-6680.291501,0.000129,2]
[339355938,1727464243036,-436.78634993,0.000129,2]
[339355939,1727464243048,-281.326473,0.000129,2]
[339355940,1727464243059,-5461.22,0.000129,2]
[339355941,1727464243165,-50430.68290997,0.000129,2]
[339355942,1727464243177,-313.60578957,0.000129,2]
[339355943,1727464243188,-460.32635449,0.000129,2]
[339355944,1727464243199,-1808914.43868129,0.000129,2]
[339355945,1727464243211,-40137.48547443,0.000129,2]
[339355946,1727464243223,-1017.6830018,0.000129,2]
[339355947,1727464243237,-1189.88173211,0.000129,2]
[339355948,1727464243250,-446.51173508,0.000129,2]
[339355949,1727464243261,-575.47544634,0.000129,2]
[339355950,1727464243272,-381.16870133,0.000129,2]
[339355951,1727464243291,-91095.8600764,0.000129,2]
[339355952,1727464243302,-1360.0494024,0.000129,2]
[339355953,1727464243318,-290.34833934,0.000129,2]
[339355954,1727464243338,-277867.79436085,0.000129,2]
[339355964,1727464245871,-619.76020313,0.000129,2]
[339355965,1727464245883,-796.03984501,0.000129,2]
[339355966,1727464245894,-49806.75960111,0.000129,2]
[339355967,1727464245906,-892744.66025361,0.000129,2]
[339355968,1727464245920,-542.58369603,0.000129,2]
[339355969,1727464245933,-12129.79429577,0.000129,2]
[339355970,1727464245974,-269.24,0.000129,2]
[339355971,1727464246024,-13064.08927026,0.000129,2]
[339355972,1727464246180,-1728.58052957,0.000129,2]
[339355973,1727464246192,-80000.0,0.000129,2]
[339355974,1727464246205,-395.606992,0.000129,2]
[339355975,1727464246236,-4004.75103814,0.000129,2]
[339355976,1727464246247,-578.09,0.000129,2]
[339355980,1727464353945,222.49,0.00013918,30]
[339355981,1727464358778,150.0,0.0001111,2]
[339355982,1727464801338,157.63,0.00010959,2]
[339355983,1727464916324,287.2,9.781e-05,2]
[339355984,1727464946644,211.36,0.00013918,30]
[339356018,1727465432029,-23900.0,0.00011297,2]
[339356019,1727465432039,-1000.0,0.00011319,2]
[339356020,1727465432049,-285.41,0.00011373,2]
[339356021,1727465432062,-285.41,0.00011373,4]
[339356022,1727465432072,-260.68,0.00011404,2]
[339356023,1727465432081,-2000.0,0.00011562,2]
[339356024,1727465432091,-2000.0,0.00011562,4]
[339356025,1727465432100,-150.0,0.00011589,2]
[339356026,1727465432110,-250.0,0.00011591,2]
[339356027,1727465432119,-200.0,0.0001161,2]
[339356028,1727465432129,-250.0,0.0001165,2]
[339356029,1727465432139,-618.2,0.00011705,2]
[339356030,1727465432149,-155.45,0.0001171,2]
[339356031,1727465432159,-250.0,0.0001171,2]
[339356032,1727465432169,-176.93,0.00011748,2]
[339356033,1727465432180,-300.0,0.00011796,2]
[339356034,1727465432189,-796.76,0.00011797,2]
[339356035,1727465432198,-568.27,0.00011797,2]
[339356036,1727465432208,-499.99,0.00011799,2]
[339356037,1727465432217,-5070.58430165,0.000118,2]
[339356038,1727465432228,-997.92,0.000118,2]
[339356039,1727465432238,-277.26,0.00011839,2]
[339356040,1727465432248,-171.48,0.00011876,2]
[339356041,1727465432258,-287.2,0.00012045,2]
[339356042,1727465432268,-587.5728,0.00012083,2]
[339356043,1727465432277,-150.0,0.00012169,2]
[339356044,1727465432286,-300.0,0.00012178,2]
[339356046,1727465432295,-167.21,0.00012445,2]
[339356047,1727465432305,-150.0,0.00012601,2]
[339356048,1727465432314,-52716.0,0.00012602,2]
[339356049,1727465432323,-167.05,0.00012728,2]
[339356050,1727465432332,-1000.0,0.00012734,2]
[339356051,1727465432343,-325.88470147,0.00012789,2]
[339356053,1727465432353,-285.41,0.00012794,2]
[339356055,1727465432362,-500.0,0.00012796,2]
[339356057,1727465432371,-500.0,0.00012797,2]
[339356059,1727465432380,-500.0,0.00012797,2]
[339356061,1727465432389,-200.0,0.00012797,2]
[339356063,1727465432398,-270.472,0.00012799,2]
[339356065,1727465432407,-62836.8928,0.00012799,2]
[339356067,1727465432418,-7500.0,0.000128,2]
[339356069,1727465432429,-2268.0,0.000128,2]
[339356071,1727465432439,-1005.0,0.000128,2]
[339356073,1727465432449,-1000.0,0.000128,3]
[339356075,1727465432458,-1000.0,0.000128,3]
[339356077,1727465432467,-1000.0,0.000128,2]
[339356079,1727465432476,-1000.0,0.000128,2]
[339356081,1727465432485,-1000.0,0.000128,3]
[339356082,1727465432494,-1000.0,0.000128,3]
[339356084,1727465432503,-502.0,0.000128,3]
[339356086,1727465432513,-1000.0,0.000128,2]
[339356088,1727465432523,-1003.0,0.000128,3]
[339356090,1727465432532,-157.52590792,0.000128,2]
[339356092,1727465432541,-188.19167094,0.000128,2]
[339356094,1727465432551,-188.19167094,0.000128,2]
[339356096,1727465432560,-188.19167094,0.000128,2]
[339356098,1727465432570,-188.19167094,0.000128,2]
[339356100,1727465432581,-188.19167094,0.000128,2]
[339356102,1727465432591,-188.19167094,0.000128,2]
[339356104,1727465432601,-188.19167094,0.000128,2]
[339356106,1727465432612,-188.19167094,0.000128,2]
[339356108,1727465432622,-188.19167094,0.000128,2]
[339356110,1727465432633,-188.19167094,0.000128,2]
[339356112,1727465432645,-188.19167094,0.000128,2]
[339356114,1727465432654,-188.19167094,0.000128,2]
[339356116,1727465432663,-188.19167094,0.000128,2]
[339356118,1727465432673,-188.19167094,0.000128,2]
[339356120,1727465432683,-188.19167094,0.000128,2]
[339356122,1727465432692,-188.19167094,0.000128,2]
[339356124,1727465432703,-188.19167094,0.000128,2]
[339356126,1727465432712,-188.19167094,0.000128,2]
[339356128,1727465432722,-188.19167094,0.000128,2]
[339356130,1727465432734,-188.69,0.000128,2]
[339356132,1727465432744,-169.96273549,0.000128,2]
[339356134,1727465432753,-169.96273549,0.000128,2]
[339356136,1727465432764,-169.96273549,0.000128,2]
[339356138,1727465432773,-169.96273549,0.000128,2]
[339356139,1727465432783,-169.96273549,0.000128,2]
[339356141,1727465432791,-169.96273549,0.000128,2]
[339356143,1727465432800,-170.46,0.000128,2]
[339356145,1727465432810,-154.16780881,0.000128,2]
[339356147,1727465432819,-154.16780881,0.000128,2]
[339356149,1727465432828,-519.51223692,0.000128,2]
[339356151,1727465432837,-154.16780881,0.000128,2]
[339356152,1727465432846,-154.16780881,0.000128,2]
[339356154,1727465432855,-154.16780881,0.000128,2]
[339356156,1727465432867,-154.16780881,0.000128,2]
[339356158,1727465432877,-154.16780881,0.000128,2]
[339356160,1727465432887,-154.16780881,0.000128,2]
[339356162,1727465432896,-154.16780881,0.000128,2]
[339356165,1727465432907,-154.66,0.000128,2]
[339356167,1727465432916,-1098.0,0.000128,2]
[339356169,1727465432925,-344.51611968,0.000128,2]
[339356170,1727465432934,-519.51223692,0.0001285,2]
[339356172,1727465432943,-500.0,0.00012873,2]
[339356174,1727465432952,-305.08856864,0.00012899,2]
[339356176,1727465432962,-1513096.55101059,0.000129,2]
[339356179,1727465432981,-1462.41130465,0.000129,2]
[339356182,1727465432992,-5894.2165829,0.000129,2]
[339356184,1727465433003,-4537.80597455,0.000129,2]
[339356242,1727465438338,-913.8965287,0.000129,2]
[339356243,1727465438350,-576.25,0.000129,2]
[339356244,1727465438386,-336.86532243,0.000129,2]
[339356250,1727465440231,-6513.63945143,0.000129,2]
[339356251,1727465440243,-517.4519315,0.000129,2]
[339356252,1727465440255,-3591.65430807,0.000129,2]
[339356253,1727465440267,-3384.914316,0.000129,2]
[339356300,1727465443778,-1337.72872409,0.000129,2]
[339356301,1727465443790,-259.15105695,0.000129,2]
[339356303,1727465443967,-3348.02043502,0.000129,2]
[339356315,1727465446087,-16498.59365816,0.000129,2]
[339356316,1727465446099,-7868.10531523,0.000129,2]
[339356317,1727465446136,-3135.70722599,0.000129,2]
[339356319,1727465446285,-25037.11192717,0.000129,2]
[339356320,1727465446297,-268.41042458,0.000129,2]
[339356321,1727465467099,200.79,0.00013918,30]
[339356322,1727465477269,766.98345184,0.00014582,30]
[339356323,1727465508511,1050.0,0.00011,2]
[339356324,1727465731047,295.36,9.98e-05,2]
[339356325,1727465858616,160.07,0.00010959,2]
[339356327,1727466027580,190.75,0.00013918,30]
[339356328,1727466338350,291.02,9.716e-05,2]
[339356355,1727466611237,181.21,0.00013918,30]
[339356366,1727466632163,-250.0,0.0001157,2]
[339356367,1727466632172,-450.0,0.00011579,2]
[339356368,1727466632216,-1224.07084925,0.00011579,2]
[339356369,1727466632275,-900.0,0.00011579,2]
[339356379,1727466638559,-296.0578,0.00011579,2]
[339356384,1727466640132,-547.06628218,0.00011579,2]
[339356385,1727466640303,-275.13883005,0.00011579,2]
[339356386,1727466640316,-385.66261705,0.00011579,2]
[339356459,1727466643333,-274.23999998,0.00011579,2]
[339356460,1727466643388,-5819.65871025,0.00011579,2]
[339356465,1727466646105,-13728.10491124,0.00011579,2]
[339356466,1727466646115,-221.8,0.00011583,2]
[339356467,1727466646127,-361.95,0.00011588,2]
[339356468,1727466646137,-150.0,0.00011589,2]
[339356469,1727466646147,-150.0,0.00011589,2]
[339356470,1727466646159,-150.00000001,0.00011589,2]
[339356471,1727466646169,-155.45,0.00011611,2]
[339356472,1727466646180,-250.0,0.00011626,2]
[339356473,1727466646190,-203.24,0.00011634,2]
[339356474,1727466646200,-564.6,0.00011718,2]
[339356475,1727466646211,-170.42,0.00011759,2]
[339356476,1727466646222,-261.41,0.00011759,2]
[339356477,1727466646234,-250.0,0.00011796,2]
[339356478,1727466646245,-1009.06,0.000118,2]
[339356479,1727466646255,-400.0,0.00011827,2]
[339356480,1727466646266,-150.0,0.00011836,2]
[339356481,1727466646277,-234.93,0.00011896,2]
[339356482,1727466646287,-291.02,0.0001198,2]
[339356483,1727466646297,-150.0,0.00012233,2]
[339356484,1727466646308,-779.08,0.00012329,2]
[339356485,1727466646318,-150.0,0.0001234,2]
[339356486,1727466646329,-167.01,0.00012445,2]
[339356487,1727466646339,-301.07,0.00012603,2]
[339356488,1727466646349,-158.791904,0.00012722,2]
[339356489,1727466646359,-200.0,0.00012797,2]
[339356490,1727466646369,-150.0,0.00012799,2]
[339356491,1727466646379,-4805.093,0.000128,2]
[339356492,1727466646390,-15997.37,0.000128,2]
[339356493,1727466646401,-509.5205,0.000128,2]
[339356494,1727466646411,-364.7506,0.000128,2]
[339356495,1727466646422,-173.17074564,0.000128,2]
[339356496,1727466646433,-150.0,0.00012802,2]
[339356497,1727466646443,-173.17074564,0.0001285,2]
[339356498,1727466646454,-167.05,0.00012854,2]
[339356499,1727466646464,-253.815,0.00012867,2]
[339356500,1727466646474,-500.0,0.00012873,2]
[339356501,1727466646485,-287.83407916,0.00012877,2]
[339356503,1727466646496,-150.0,0.0001288,2]
[339356504,1727466646507,-152.64795347,0.00012898,2]
[339356505,1727466646517,-152.64795347,0.00012898,2]
[339356506,1727466646528,-152.64795347,0.00012898,2]
[339356507,1727466646538,-152.64795347,0.00012898,2]
[339356508,1727466646548,-152.64795347,0.00012898,2]
[339356509,1727466646559,-152.64795347,0.00012898,2]
[339356510,1727466646569,-152.64795347,0.00012898,2]
[339356512,1727466646579,-152.64795347,0.00012898,2]
[339356513,1727466646589,-152.64795347,0.00012898,2]
[339356514,1727466646599,-152.64795347,0.00012898,2]
[339356515,1727466646609,-152.64795347,0.00012898,2]
[339356516,1727466646619,-152.64795347,0.00012898,2]
[339356517,1727466646629,-152.64795347,0.00012898,2]
[339356518,1727466646639,-152.64795347,0.00012898,2]
[339356519,1727466646649,-152.64795347,0.00012898,2]
[339356520,1727466646659,-152.64795347,0.00012898,2]
[339356521,1727466646668,-152.64795347,0.00012898,2]
[339356522,1727466646678,-152.64795347,0.00012898,2]
[339356523,1727466646687,-152.64795347,0.00012898,2]
[339356524,1727466646697,-153.14,0.00012898,2]
[339356525,1727466646706,-158.61531098,0.00012898,2]
[339356526,1727466646716,-158.61531098,0.00012898,2]
[339356527,1727466646726,-158.61531098,0.00012898,2]
[339356528,1727466646735,-158.61531098,0.00012898,2]
[339356529,1727466646745,-158.61531098,0.00012898,2]
[339356530,1727466646755,-159.11,0.00012898,2]
[339356531,1727466646765,-154.15550404,0.00012898,2]
[339356532,1727466646775,-154.15550404,0.00012898,2]
[339356533,1727466646786,-154.15550404,0.00012898,2]
[339356534,1727466646796,-154.15550404,0.00012898,2]
[339356535,1727466646807,-154.15550404,0.00012898,2]
[339356536,1727466646819,-154.15550404,0.00012898,2]
[339356537,1727466646831,-154.15550404,0.00012898,2]
[339356538,1727466646842,-154.65,0.00012898,2]
[339356539,1727466646852,-1117.01920495,0.00012899,3]
[339356540,1727466646862,-230491.97812588,0.000129,2]
[339356541,1727466646880,-3118.6163164,0.000129,2]
[339356542,1727466646894,-17462.18549408,0.000129,2]
[339356543,1727466646906,-335.30570427,0.000129,2]
[339356544,1727466646918,-1208.0,0.000129,2]
[339356545,1727466646930,-19441.66142464,0.000129,2]
[339356546,1727466646942,-692.17038355,0.000129,2]
[339356547,1727466646958,-13115.02648936,0.000129,2]
[339356548,1727466646970,-361.55571279,0.000129,2]
[339356549,1727466646982,-933.43918581,0.000129,2]
[339356550,1727466646995,-47787.69959999,0.000129,2]
[339356551,1727466647008,-3464.78695368,0.000129,2]
[339356552,1727466855484,298.08,9.95e-05,2]
[339356553,1727467069353,270.63,0.00010959,2]
[339356554,1727467175686,172.14,0.00013918,30]
[339356555,1727467327889,1050.0,0.00011,2]
[339356556,1727467393014,500.0,0.00010959,2]
[339356557,1727467393806,500.0,0.00010959,2]
[339356558,1727467394159,500.0,0.00010959,2]
[339356559,1727467394502,500.0,0.00010959,2]
[339356560,1727467395041,500.0,0.00010959,2]
[339356561,1727467399395,283.17,9.793e-05,2]
[339356562,1727467403259,2000.0,0.00010959,2]
[339356563,1727467407532,500.0,0.00010959,2]
[339356564,1727467407901,500.0,0.00010959,2]
[339356565,1727467408238,500.0,0.00010959,2]
[339356566,1727467414513,500.0,0.00010912,2]
[339356567,1727467419322,200.0,0.00010959,2]
[339356573,1727467657543,157.63,0.00010959,2]
[339356582,1727467765087,163.53,0.00013918,30]
[339356590,1727467832496,-470.60202167,0.00011507,2]
[339356591,1727467832517,-5902.87412168,0.00011507,2]
[339356592,1727467832527,-250.0,0.0001158,2]
[339356593,1727467832537,-1584.87,0.00011607,2]
[339356594,1727467832547,-155.41,0.00011657,2]
[339356595,1727467832556,-250.0,0.00011658,2]
[339356596,1727467832566,-300.0,0.00011661,2]
[339356597,1727467832576,-21946.12427847,0.00011662,2]
[339356598,1727467832588,-569.99999994,0.00011662,2]
[339356599,1727467832599,-351.899999,0.00011662,2]
[339356600,1727467832611,-1031.97572259,0.00011662,2]
[339356601,1727467832620,-383.78,0.00011662,2]
[339356602,1727467832630,-278.2,0.00011669,2]
[339356603,1727467832639,-187.94,0.00011687,2]
[339356604,1727467832648,-912.77,0.00011709,2]
[339356605,1727467832658,-46.93402314,0.00011711,2]
[339356606,1727467832669,-203.06597686,0.00011711,2]
[339356607,1727467832679,-150.0,0.00011715,2]
[339356608,1727467832688,-5043.20611236,0.00011716,2]
[339356609,1727467832700,-1954.39388764,0.00011716,2]
[339356610,1727467832710,-170.42,0.00011718,2]
[339356611,1727467832719,-2000.0,0.0001172,2]
[339356613,1727467832730,-1000.0,0.00011729,2]
[339356615,1727467832739,-257.83,0.00011757,2]
[339356616,1727467832748,-921.97,0.00011757,2]
[339356618,1727467832758,-1003.54,0.000118,2]
[339356620,1727467832767,-169.36,0.00011825,2]
[339356622,1727467832776,-283.17,0.00012057,2]
[339356624,1727467832786,-852.33,0.000121,2]
[339356626,1727467832795,-1507.12,0.000121,2]
[339356628,1727467832805,-156.62,0.00012258,2]
[339356629,1727467832814,-150.0,0.00012262,2]
[339356630,1727467832823,-150.0,0.0001234,2]
[339356631,1727467832833,-294.03,0.0001234,2]
[339356632,1727467832843,-810.0,0.0001234,2]
[339356633,1727467832852,-932.0,0.0001234,2]
[339356634,1727467832861,-558.0,0.0001234,2]
[339356635,1727467832871,-438.223,0.0001234,2]
[339356636,1727467832880,-804.0,0.0001234,2]
[339356637,1727467832889,-167.01,0.00012445,2]
[339356638,1727467832899,-150.0,0.00012726,2]
[339356639,1727467832908,-150.0,0.00012727,2]
[339356640,1727467832918,-150.0,0.00012732,2]
[339356641,1727467832927,-150.0,0.00012732,2]
[339356642,1727467832937,-150.0,0.00012735,2]
[339356643,1727467832948,-150.0,0.00012737,2]
[339356644,1727467832958,-150.0,0.00012743,2]
[339356645,1727467832967,-150.0,0.00012743,2]
[339356646,1727467832976,-260.2326181,0.00012745,2]
[339356647,1727467832986,-150.0,0.00012747,2]
[339356648,1727467832996,-150.0,0.00012748,2]
[339356649,1727467833011,-150.0,0.00012751,2]
[339356650,1727467833022,-150.0,0.00012758,2]
[339356651,1727467833032,-150.0,0.00012762,2]
[339356652,1727467833043,-150.0,0.00012765,2]
[339356653,1727467833052,-150.0,0.00012767,2]
[339356654,1727467833061,-150.0,0.00012769,2]
[339356655,1727467833071,-150.0,0.00012773,2]
[339356656,1727467833080,-150.0,0.00012774,2]
[339356657,1727467833090,-150.0,0.00012778,2]
[339356658,1727467833100,-150.0,0.00012779,2]
[339356659,1727467833109,-150.0,0.00012787,2]
[339356660,1727467833119,-150.0,0.00012788,2]
[339356661,1727467833128,-243.1050947,0.00012794,2]
[339356662,1727467833138,-150.0,0.00012798,2]
[339356663,1727467833147,-7500.0,0.00012799,2]
[339356664,1727467833157,-8227.1488,0.000128,2]
[339356665,1727467833166,-302.59,0.000128,2]
[339356666,1727467833176,-633.2,0.000128,2]
[339356667,1727467833185,-2901.4902,0.000128,2]
[339356668,1727467833195,-34803.4372,0.000128,2]
[339356669,1727467833205,-264.8041,0.000128,2]
[339356670,1727467833214,-1075.8716,0.000128,2]
[339356671,1727467833224,-1451.1123,0.000128,2]
[339356672,1727467833234,-38637.7802,0.000128,2]
[339356673,1727467833244,-240.353,0.000128,2]
[339356674,1727467833257,-165.536,0.000128,2]
[339356675,1727467833267,-150.0,0.000128,2]
[339356676,1727467833276,-157.52590792,0.000128,2]
[339356677,1727467833286,-404.06507316,0.000128,2]
[339356678,1727467833295,-324.63891237,0.000128,2]
[339356679,1727467833305,-150.0,0.00012802,2]
[339356680,1727467833314,-150.0,0.00012804,2]
[339356681,1727467833324,-420.0,0.00012805,2]
[339356682,1727467833334,-167.05,0.00012806,2]
[339356683,1727467833344,-150.0,0.00012807,2]
[339356684,1727467833355,-150.0,0.00012809,2]
[339356685,1727467833364,-150.0,0.00012814,2]
[339356686,1727467833373,-150.0,0.00012815,2]
[339356687,1727467833382,-150.0,0.00012817,2]
[339356688,1727467833392,-266.362806,0.00012818,2]
[339356689,1727467833401,-150.0,0.00012822,2]
[339356690,1727467833411,-150.0,0.00012823,2]
[339356691,1727467833420,-150.0,0.00012825,2]
[339356692,1727467833429,-150.0,0.00012828,2]
[339356693,1727467833439,-150.0,0.00012829,2]
[339356694,1727467833448,-150.0,0.00012831,2]
[339356695,1727467833458,-150.0,0.00012833,2]
[339356696,1727467833467,-150.0,0.0001284,2]
[339356697,1727467833477,-150.0,0.00012842,2]
[339356698,1727467833486,-150.0,0.00012843,2]
[339356699,1727467833496,-150.0,0.00012847,2]
[339356700,1727467833507,-404.06507316,0.0001285,2]
[339356701,1727467833517,-237.03711621,0.00012851,2]
[339356702,1727467833526,-203.4718491,0.00012851,2]
[339356703,1727467833537,-150.0,0.00012853,2]
[339356704,1727467833546,-150.0,0.00012857,2]
[339356705,1727467833556,-150.0,0.0001286,2]
[339356706,1727467833565,-150.0,0.0001286,2]
[339356707,1727467833575,-150.0,0.00012861,2]
[339356708,1727467833584,-150.0,0.00012867,2]
[339356709,1727467833594,-150.0,0.00012868,2]
[339356710,1727467833604,-150.0,0.00012871,2]
[339356711,1727467833614,-150.0,0.00012871,2]
[339356712,1727467833623,-500.0,0.00012873,2]
[339356713,1727467833633,-203.4718491,0.00012875,2]
[339356714,1727467833642,-150.0,0.00012881,2]
[339356715,1727467833652,-150.0,0.00012881,2]
[339356716,1727467833661,-150.0,0.00012885,2]
[339356717,1727467833671,-150.0,0.00012885,2]
[339356718,1727467833681,-15288.55109859,0.00012888,2]
[339356719,1727467833691,-237.47651731,0.0001289,2]
[339356720,1727467833701,-151.51,0.0001289,2]
[339356721,1727467833710,-1000.0,0.00012891,2]
[339356722,1727467833720,-150.0,0.00012892,2]
[339356723,1727467833730,-150.0,0.00012893,2]
[339356724,1727467833740,-3432.5993597,0.00012894,2]
[339356725,1727467833751,-20075.4044342,0.00012894,2]
[339356726,1727467833760,-3208.0797663,0.00012894,2]
[339356727,1727467833769,-154.74142788,0.00012895,2]
[339356728,1727467833781,-154.74142788,0.00012895,2]